bitfinex-derivatives/quotes_ETHF0:USTF0_20210702
["timestamp","ask_amount","ask_price","bid_price","bid_amount"]
[1625251163177,1.40829584,2094.3,2093.8,3.20527]
[1625251163528,1.41617999,2094.2,2093.8,3.20527]
[1625251163980,1.41617999,2094.2,2094.1,53.3168]
[1625251164081,1.41617999,2094.2,2094.1,58.0897]
[1625251165033,1.41614746,2094.3,2094.1,58.0897]
[1625251165186,1.41614746,2094.3,2094.2,2.20527]
[1625251165285,1.41614746,2094.3,2094.2,3.20527]
[1625251165785,2.82403077,2094.3,2094.2,3.20527]
[1625251166188,1.41614746,2094.3,2094.2,3.20527]
[1625251167697,1.4076984,2094.5,2094.2,3.20527]
[1625251167992,3.61232406,2094.9,2094.2,3.20527]
[1625251168556,3.61232406,2094.9,2094.8,53.5617]
[1625251168654,3.61232406,2094.9,2094.8,1.0]
[1625251168754,2.20527,2094.9,2094.8,1.0]
[1625251168957,3.62108202,2094.9,2094.8,1.0]
[1625251169159,3.62108202,2094.9,2094.8,47.5594]
[1625251169309,3.62108202,2094.9,2094.8,5.41054]
[1625251169509,5.59132616,2094.9,2094.8,5.41054]
[1625251169813,5.02781694,2094.9,2094.8,5.41054]
[1625251169913,5.02781694,2094.9,2094.8,51.96994]
[1625251172265,2.82254694,2094.9,2094.8,51.96994]
[1625251173167,1.41581202,2094.9,2094.8,51.96994]
[1625251173473,2.82170108,2095.0,2094.8,51.96994]
[1625251173985,1.40584054,2095.3,2094.8,51.96994]
[1625251174387,1.40587122,2095.4,2094.8,51.96994]
[1625251174888,2.81174243,2095.6,2094.8,51.96994]
[1625251174889,1.40579252,2095.6,2094.8,51.96994]
[1625251174987,1.40579252,2095.6,2094.9,17.286354]
[1625251175097,1.40579252,2095.6,2095.0,1.0]
[1625251175187,1.40579252,2095.6,2095.0,3.4896]
[1625251175292,1.40579252,2095.6,2095.5,46.85344]
[1625251175389,1.40440337,2096.1,2095.5,50.80854]
[1625251175689,1.41523425,2096.0,2095.5,50.80854]
[1625251175788,2.81962806,2096.0,2095.5,50.80854]
[1625251176040,1.40456885,2095.8,2095.5,50.80854]
[1625251176440,1.40456885,2095.8,2095.5,47.85344]
[1625251176939,1.96639639,2095.9,2095.5,47.85344]
[1625251176940,1.40371036,2095.9,2095.5,47.85344]
[1625251177191,1.41535162,2095.8,2095.5,47.85344]
[1625251177542,1.40371036,2095.9,2095.5,47.85344]
[1625251177643,1.40363336,2096.0,2095.5,47.85344]
[1625251177795,1.40363336,2096.0,2095.5,50.33824]
[1625251178043,1.4036313,2096.1,2095.9,54.5257]
[1625251178243,1.4036313,2096.1,2095.5,50.33824]
[1625251178342,1.41526148,2096.0,2095.5,49.33824]
[1625251178445,2.81896141,2096.0,2095.5,49.33824]
[1625251178744,1.41532708,2095.9,2095.5,6.89534]
[1625251178846,1.41532708,2095.9,2095.5,4.41054]
[1625251178998,2.81839779,2095.9,2095.5,4.41054]
[1625251179348,5.02366779,2095.9,2095.8,2.20527]
[1625251179450,3.60834071,2095.9,2095.8,2.20527]
[1625251179747,2.20527,2095.9,2095.8,2.20527]
[1625251179848,3.62070486,2095.9,2095.8,2.20527]
[1625251179948,5.02376658,2095.9,2095.8,2.20527]
[1625251180058,2.81849658,2095.9,2095.8,2.20527]
[1625251180851,2.81849658,2095.9,2095.8,60.38057]
[1625251180954,2.81849658,2095.9,2095.8,2.20527]
[1625251181353,5.02376658,2095.9,2095.8,2.20527]
[1625251183627,3.60833172,2095.9,2095.8,2.20527]
[1625251183825,1.40306172,2095.9,2095.8,2.20527]
[1625251183929,2.81851457,2095.9,2095.8,2.20527]
[1625251184177,2.81851457,2095.9,2095.8,53.17377]
[1625251184327,1.41545285,2095.9,2095.8,53.17377]
[1625251184528,1.41545285,2095.9,2095.8,2.20527]
[1625251184637,1.40134651,2096.1,2095.8,2.20527]
[1625251185231,1.40134651,2096.1,2095.9,45.0377]
[1625251185332,1.40134651,2096.1,2096.0,2.20527]
[1625251185685,1.40063993,2096.2,2096.0,2.20527]
[1625251185783,1.41529699,2096.1,2096.0,2.20527]
[1625251186485,1.40063993,2096.2,2096.0,2.20527]
[1625251186786,1.40063993,2096.2,2096.0,1.07304261]
[1625251186937,1.41532539,2096.1,2096.0,1.07304261]
[1625251187289,1.40063993,2096.2,2096.0,1.07304261]
[1625251187686,1.40027125,2096.3,2096.0,1.07304261]
[1625251187986,1.41529139,2096.2,2096.0,1.07304261]
[1625251188385,1.40027125,2096.3,2096.0,1.07304261]
[1625251188587,1.40027125,2096.3,2095.9,3.5018]
[1625251188687,1.40027125,2096.3,2095.3,70.3714]
[1625251188789,1.41531403,2096.2,2095.3,71.3714]
[1625251188938,1.41531403,2096.2,2095.3,1.0]
[1625251189038,2.81515729,2096.2,2095.3,1.0]
[1625251189189,2.81515729,2096.2,2094.6,15.6089]
[1625251189338,2.20527,2095.6,2095.5,2.20527]
[1625251189488,5.09917,2095.6,2095.5,2.20527]
[1625251192598,2.20527,2095.6,2095.5,2.20527]
[1625251192698,2.20527,2095.6,2095.5,48.41607]
[1625251193150,2.20527,2095.6,2095.5,2.20527]
[1625251194153,55.64987,2095.6,2095.5,2.20527]
[1625251194252,55.64987,2095.6,2095.5,7e-05]
[1625251194353,62.06551805,2095.6,2095.5,7e-05]
[1625251194503,62.06551805,2095.6,2094.3,1.0]
[1625251194702,63.48130837,2095.6,2094.3,1.0]
[1625251194907,1.39986831,2095.5,2094.3,1.0]
[1625251195153,2.81573529,2095.5,2094.3,1.0]
[1625251195369,2.20527,2094.4,2094.3,1.0]
[1625251195520,5.58277,2094.4,2094.3,1.0]
[1625251195672,5.58277,2094.4,2094.1,2.20527]
[1625251196171,5.58277,2094.4,2093.7,14.444]
[1625251196674,5.58277,2094.4,2093.6,1.0]
[1625251196772,5.58277,2094.4,2092.4,4.759]
[1625251196972,5.58277,2094.4,2092.5,15.0007]
[1625251197271,52.7819,2093.6,2092.5,15.0007]
[1625251197372,54.98717,2093.6,2093.5,2.20527]
[1625251197472,2.20527,2093.6,2093.5,2.20527]
[1625251197725,2.20527,2093.8,2093.5,2.20527]
[1625251197726,2.20527,2093.8,2093.5,3.20527]
[1625251201387,2.20527,2093.8,2093.7,2.20527]
[1625251201486,2.20527,2093.8,2093.7,3.20527]
[1625251203993,1.40072794,2095.1,2093.7,3.20527]
[1625251204091,1.40072794,2095.1,2093.7,6.99547]
[1625251204291,1.40052166,2095.4,2093.7,6.99547]
[1625251204492,1.40052166,2095.4,2094.6,53.5806]
[1625251204894,1.40052166,2095.4,2094.6,54.5806]
[1625251204995,1.40045789,2095.5,2094.6,54.5806]
[1625251205095,1.40045789,2095.5,2094.6,3.4799]
[1625251205245,1.40045789,2095.5,2094.6,2.4799]
[1625251205445,2.20527,2094.7,2094.6,2.4799]
[1625251205795,2.20527,2094.9,2094.6,2.4799]
[1625251205896,2.20527,2094.9,2094.4,3.20527]
[1625251207451,2.20527,2094.5,2094.4,3.20527]
[1625251207551,2.20527,2094.9,2094.4,3.20527]
[1625251209456,2.20527,2094.9,2094.7,2.20527]
[1625251209553,2.20527,2095.1,2094.7,5.24607]
[1625251210320,2.20527,2095.1,2094.7,6.24607]
[1625251211269,2.20527,2095.1,2094.7,2.20527]
[1625251211523,4.41054,2094.5,2094.4,2.20527]
[1625251211619,8.18244,2094.5,2094.4,2.20527]
[1625251211972,51.23784,2094.5,2094.4,2.20527]
[1625251212271,51.23784,2094.5,2093.5,14.8425]
[1625251212472,8.18244,2094.5,2093.5,15.8425]
[1625251213521,8.18244,2094.5,2093.9,2.20527]
[1625251213621,8.18244,2094.5,2093.9,3.20527]
[1625251214675,8.18244,2094.5,2093.9,1.0]
[1625251215428,8.18244,2094.5,2093.9,46.633]
[1625251216779,4.41054,2094.5,2093.9,49.9231]
[1625251217482,4.41054,2094.5,2094.2,2.20527]
[1625251217731,1.40299596,2095.0,2094.2,3.20527]
[1625251218131,1.40299596,2095.0,2094.4,40.8704]
[1625251218232,1.41597223,2094.9,2094.4,40.8704]
[1625251218485,1.41597223,2094.9,2094.4,41.8704]
[1625251218582,1.40299596,2095.0,2094.4,41.8704]
[1625251219232,1.96419434,2095.1,2094.4,41.8704]
[1625251219233,1.40346189,2095.1,2094.4,41.8704]
[1625251219333,1.40346189,2095.1,2094.4,44.793]
[1625251219482,2.20527,2094.9,2094.8,2.20527]
[1625251220634,2.20527,2094.9,2094.8,3.20527]
[1625251220785,2.20527,2094.9,2094.8,2.20527]
[1625251221235,2.20527,2094.9,2094.8,3.20527]
[1625251221486,4.41054,2094.9,2094.8,3.20527]
[1625251221885,4.41054,2094.9,2094.8,52.72557]
[1625251221985,4.41054,2094.9,2094.8,3.20527]
[1625251222135,4.41054,2094.9,2094.8,2.20527]
[1625251225291,5.82632106,2094.9,2094.8,2.20527]
[1625251225393,5.82632106,2094.9,2094.8,60.33947]
[1625251225492,3.62105106,2094.9,2094.8,61.33947]
[1625251225641,1.40468055,2095.1,2094.8,61.33947]
[1625251226044,1.40546963,2095.2,2094.8,61.33947]
[1625251226545,1.40533432,2095.4,2094.8,61.33947]
[1625251226646,1.40533432,2095.4,2095.1,59.918]
[1625251226746,1.40533432,2095.4,2095.2,1.0]
[1625251226897,1.40527372,2095.5,2095.2,1.0]
[1625251227094,1.41540794,2095.4,2095.2,1.0]
[1625251227548,1.41540794,2095.4,2095.3,4.41054]
[1625251227648,1.41540794,2095.4,2095.3,5.41054]
[1625251227847,2.20527,2095.5,2095.3,5.41054]
[1625251228349,2.20527,2095.5,2095.3,1.0]
[1625251228603,1.41539802,2095.4,2095.3,1.0]
[1625251230104,2.36969802,2095.4,2095.3,1.0]
[1625251230402,1.41539802,2095.4,2095.3,1.0]
[1625251231306,1.41539802,2095.4,2095.3,58.6838]
[1625251231607,1.40559238,2095.6,2095.3,58.6838]
[1625251232161,1.41533548,2095.5,2095.3,58.6838]
[1625251232660,1.41533548,2095.5,2095.3,1.0]
[1625251232911,8.48264388,2095.6,2095.2,2.20527]
[1625251233059,1.4057289,2095.4,2095.2,2.20527]
[1625251233559,5.58904998,2095.3,2095.2,2.20527]
[1625251234012,5.02666827,2095.3,2095.2,2.20527]
[1625251234475,4.58465796,2095.3,2095.2,2.20527]
[1625251234673,3.62085796,2095.3,2095.2,2.20527]
[1625251234974,3.62085796,2095.3,2095.2,43.25687]
[1625251235076,3.62085796,2095.3,2095.2,2.20527]
[1625251235178,1.41558796,2095.3,2095.2,2.20527]
[1625251236277,1.41558796,2095.3,2095.2,57.33897]
[1625251236381,1.41558796,2095.3,2095.2,2.20527]
[1625251237183,1.41558796,2095.3,2095.2,3.20527]
[1625251237680,1.40578234,2095.4,2095.2,3.20527]
[1625251237781,1.40591828,2095.6,2095.2,6.19647]
[1625251238031,1.41539883,2095.5,2095.2,6.19647]
[1625251239185,1.40591828,2095.6,2095.2,6.19647]
[1625251239286,3.61124416,2095.7,2095.2,6.19647]
[1625251239536,3.61124416,2095.7,2095.6,2.20527]
[1625251239636,3.61124416,2095.7,2095.2,6.19647]
[1625251240038,3.61124416,2095.7,2095.4,43.4585]
[1625251240137,3.61124416,2095.7,2095.5,1.0]
[1625251241243,2.20527,2095.7,2095.5,1.0]
[1625251241693,3.61135772,2095.7,2095.5,1.0]
[1625251242844,3.61135772,2095.7,2095.3,1.0]
[1625251242943,1.40615034,2095.6,2095.3,1.0]
[1625251243194,1.40615034,2095.6,2095.2,4.41054]
[1625251243410,1.40627784,2095.4,2095.2,4.41054]
[1625251243559,2.20527,2095.3,2094.1,15.1862]
[1625251243710,3.62069724,2095.3,2094.1,15.1862]
[1625251243810,3.62069724,2095.3,2094.6,1.0]
[1625251244112,1.41543552,2095.2,2094.6,1.0]
[1625251244411,1.41543552,2095.2,2094.6,1.9473]
[1625251245016,1.41543552,2095.2,2094.6,1.0]
[1625251245326,1.41543552,2095.2,2094.7,3.1352]
[1625251245427,1.41543552,2095.2,2094.8,1.0]
[1625251245532,1.41543552,2095.2,2095.1,4.41054]
[1625251245632,2.20527,2095.3,2095.1,5.41054]
[1625251245882,1.40646826,2095.5,2095.1,5.41054]
[1625251246235,3.61161039,2095.7,2095.1,5.41054]
[1625251246687,1.41523036,2095.6,2095.1,5.41054]
[1625251246987,1.41523036,2095.6,2095.5,49.3142]
[1625251247088,1.41523036,2095.6,2095.4,3.7617]
[1625251247540,1.41523036,2095.6,2095.4,5.96697]
[1625251247642,1.41523036,2095.6,2095.5,1.0]
[1625251248342,1.41523036,2095.6,2095.4,2.20527]
[1625251248442,1.41523036,2095.6,2095.4,3.20527]
[1625251249297,1.41523036,2095.6,2095.4,2.20527]
[1625251249597,2.20527,2095.5,2095.4,2.20527]
[1625251249797,3.61188623,2095.5,2095.4,2.20527]
[1625251250048,59.41718623,2095.5,2094.1,15.1862]
[1625251250198,67.0571012,2095.5,2094.1,15.1862]
[1625251250498,67.0571012,2095.5,2094.2,1.0]
[1625251250597,7.07740244,2095.4,2094.3,41.967]
[1625251250699,1.4067956,2095.3,2094.4,1.0]
[1625251250950,1.41548986,2095.2,2094.4,1.0]
[1625251251050,4.63618986,2095.2,2094.4,1.0]
[1625251251550,2.20527,2094.9,2094.8,2.20527]
[1625251253404,2.20527,2094.9,2094.8,3.20527]
[1625251253553,4.41054,2094.9,2094.8,3.20527]
[1625251254354,5.82605449,2094.9,2094.8,3.20527]
[1625251255507,5.82605449,2094.9,2094.8,2.20527]
[1625251256207,11.48890078,2094.9,2094.8,2.20527]
[1625251256658,13.46003038,2094.9,2094.8,2.20527]
[1625251257864,14.30498596,2094.9,2094.8,2.20527]
[1625251260070,11.48890078,2094.9,2094.8,2.20527]
[1625251260221,17.15240683,2094.9,2094.8,2.20527]
[1625251260670,11.48890078,2094.9,2094.8,2.20527]
[1625251261421,17.15258254,2094.9,2094.8,2.20527]
[1625251261672,20.81387464,2094.9,2094.8,2.20527]
[1625251261871,17.15258254,2094.9,2094.8,2.20527]
[1625251262471,11.48890078,2094.9,2094.8,2.20527]
[1625251262884,13.46002888,2094.9,2094.8,2.20527]
[1625251263676,13.46002888,2094.9,2094.0,2.20527]
[1625251263825,13.46002888,2094.9,2094.1,1.0]
[1625251263924,1.40792813,2094.8,2094.1,1.0]
[1625251264024,2.82366991,2094.8,2094.1,1.0]
[1625251264275,2.82366991,2094.8,2094.3,59.4184]
[1625251264375,1.4157641,2094.7,2094.1,1.0]
[1625251264876,1.4157641,2094.7,2094.3,59.4128]
[1625251265025,1.4157641,2094.7,2094.4,1.0]
[1625251265525,2.3802641,2094.7,2094.4,1.0]
[1625251265635,2.20527,2094.5,2094.4,3.20527]
[1625251266141,2.20527,2094.5,2094.4,52.98507]
[1625251266291,2.20527,2094.5,2094.4,3.20527]
[1625251267949,2.20527,2094.5,2094.4,62.48687]
[1625251270403,2.20527,2094.5,2094.4,3.20527]
[1625251270752,3.16237,2094.5,2094.4,3.20527]
[1625251271102,2.20527,2094.5,2094.4,3.20527]
[1625251271303,2.20527,2094.5,2094.4,48.41487]
[1625251272256,1.40808913,2095.1,2094.4,48.41487]
[1625251272663,1.41567793,2095.0,2094.4,48.41487]
[1625251272863,2.82381869,2095.0,2094.4,48.41487]
[1625251273413,1.4156783,2094.9,2094.4,48.41487]
[1625251273662,1.4156783,2094.9,2094.4,50.62014]
[1625251274465,1.4156664,2095.0,2094.4,50.62014]
[1625251274662,1.4156664,2095.0,2094.4,54.01994]
[1625251275675,1.4156664,2095.0,2094.7,2.20527]
[1625251275775,1.4156664,2095.0,2094.8,1.0]
[1625251277198,2.82411917,2095.0,2094.8,1.0]
[1625251277448,1.41566306,2094.9,2094.8,1.0]
[1625251278648,2.82421219,2094.9,2094.7,2.20527]
[1625251278899,2.82421219,2094.9,2094.5,1.0]
[1625251279001,1.41574989,2094.8,2094.5,1.0]
[1625251279150,47.5907,2094.7,2094.5,1.0]
[1625251279350,47.5907,2094.7,2094.4,2.20527]
[1625251279752,4.41054,2094.5,2094.2,1.0]
[1625251279852,7.80714,2094.5,2094.2,1.0]
[1625251280105,1.4158251,2094.4,2094.2,1.0]
[1625251280709,1.4158251,2094.4,2094.1,2.20527]
[1625251280807,59.1537251,2094.4,2094.1,3.20527]
[1625251280958,1.4158251,2094.4,2094.1,3.20527]
[1625251281059,1.4158251,2094.4,2094.1,2.20527]
[1625251281509,59.2845251,2094.4,2094.1,2.20527]
[1625251281608,1.4158251,2094.4,2094.1,2.20527]
[1625251281709,2.20527,2094.2,2094.1,2.20527]
[1625251283414,2.20527,2094.2,2094.1,3.20527]
[1625251286171,2.20527,2094.2,2094.1,61.55297]
[1625251288529,2.20527,2094.2,2094.1,3.20527]
[1625251289030,2.20527,2094.2,2094.1,59.92947]
[1625251289179,2.20527,2094.2,2094.1,3.20527]
[1625251291911,2.20527,2094.2,2094.1,5.69937]
[1625251292362,2.20527,2094.2,2094.1,60.46177]
[1625251292464,2.20527,2094.2,2094.1,5.69937]
[1625251292663,54.68970143,2094.5,2094.1,5.69937]
[1625251292865,3.61520143,2094.5,2094.1,5.69937]
[1625251293113,2.20527,2094.5,2094.1,5.69937]
[1625251293314,1.41587389,2094.4,2094.1,5.69937]
[1625251293416,1.41587389,2094.4,2094.3,54.7578]
[1625251293515,1.41587389,2094.4,2094.1,5.69937]
[1625251295067,1.41587389,2094.4,2094.1,3.20527]
[1625251297327,1.41587389,2094.4,2094.2,3.1785]
[1625251297427,1.41587389,2094.4,2094.2,4.1785]
[1625251299876,2.20527,2094.3,2094.2,4.1785]
[1625251300428,3.62111308,2094.3,2094.2,4.1785]
[1625251300730,2.20527,2094.3,2094.2,4.1785]
[1625251301479,3.62111423,2094.3,2094.2,4.1785]
[1625251301889,3.62111423,2094.3,2094.2,6.38377]
[1625251302290,2.20527,2094.3,2094.2,6.38377]
[1625251302539,2.20527,2094.3,2094.2,49.16547]
[1625251302641,3.6154946,2094.5,2094.2,49.16547]
[1625251303141,1.41583758,2094.4,2094.2,49.16547]
[1625251303242,1.41583758,2094.4,2094.3,54.9156]
[1625251303404,1.41583758,2094.4,2094.3,1.0]
[1625251303796,1.41583758,2094.4,2094.3,55.9156]
[1625251303899,1.41583758,2094.4,2094.3,1.0]
[1625251305762,1.41583758,2094.4,2094.3,44.906]
[1625251305868,1.41583758,2094.4,2094.3,1.0]
[1625251307521,1.41583758,2094.4,2094.3,48.2525]
[1625251307622,1.41583758,2094.4,2094.3,1.0]
[1625251307873,1.41583758,2094.4,2094.3,3.20527]
[1625251309375,1.41583758,2094.4,2094.3,49.92497]
[1625251309476,1.41583758,2094.4,2094.3,3.20527]
[1625251310328,1.41583758,2094.4,2094.3,49.92497]
[1625251310426,1.41583758,2094.4,2094.3,3.20527]
[1625251310929,1.41583758,2094.4,2094.3,55.76467]
[1625251311082,1.41583758,2094.4,2094.3,3.20527]
[1625251311678,1.41583758,2094.4,2094.3,53.61897]
[1625251313242,2.20527,2094.5,2094.3,53.61897]
[1625251313341,2.20527,2094.5,2094.4,56.3483]
[1625251313492,2.20527,2094.5,2094.4,57.3483]
[1625251314142,2.20527,2094.5,2094.4,1.0]
[1625251314652,2.20527,2094.5,2094.4,42.5554]
[1625251314743,3.38640034,2094.9,2094.4,42.5554]
[1625251315094,1.41556844,2094.8,2094.4,42.5554]
[1625251315395,1.41556844,2094.8,2094.7,56.5148]
[1625251315495,1.41556588,2094.9,2094.7,61.3211]
[1625251315947,1.41556588,2094.9,2094.8,4.41054]
[1625251316046,1.41556588,2094.9,2094.8,5.41054]
[1625251317150,1.41556588,2094.9,2094.8,64.83404]
[1625251317249,1.41556588,2094.9,2094.8,5.41054]
[1625251320528,1.41556588,2094.9,2094.8,62.60374]
[1625251322192,1.41540856,2095.1,2094.8,62.60374]
[1625251322544,1.41540856,2095.1,2094.8,5.41054]
[1625251323042,1.41540856,2095.1,2095.0,52.2502]
[1625251323142,1.41540856,2095.1,2095.0,1.0]
[1625251323695,1.41540856,2095.1,2095.0,41.8901]
[1625251324396,1.41540856,2095.1,2095.0,1.0]
[1625251324946,1.41540856,2095.1,2095.0,45.5115]
[1625251325046,1.41540856,2095.1,2095.0,1.0]
[1625251326599,2.20527,2095.2,2095.0,1.0]
[1625251326952,1.41527879,2095.1,2095.0,1.0]
[1625251329162,1.41527879,2095.1,2095.0,45.595]
[1625251329314,1.41527879,2095.1,2095.0,1.0]
[1625251329614,2.20527,2095.2,2095.0,1.0]
[1625251329714,2.20527,2095.2,2095.1,40.4321]
[1625251329813,2.20527,2095.2,2095.1,41.4321]
[1625251329965,2.20527,2095.2,2095.1,43.63737]
[1625251330065,2.20527,2095.2,2095.1,3.20527]
[1625251330316,3.62052683,2095.2,2095.1,3.20527]
[1625251330565,3.62052683,2095.2,2095.1,50.62547]
[1625251331268,3.62052683,2095.2,2095.1,3.20527]
[1625251331971,3.62052683,2095.2,2095.1,53.34317]
[1625251332270,3.62052683,2095.2,2095.1,3.20527]
[1625251333022,3.62052683,2095.2,2095.1,49.19987]
[1625251334028,2.20527,2095.2,2095.1,49.19987]
[1625251335288,1.41003114,2095.5,2095.1,49.19987]
[1625251335393,1.4097302,2095.7,2095.1,49.19987]
[1625251335702,1.40963344,2095.8,2095.1,49.19987]
[1625251336048,1.40963344,2095.8,2095.7,49.4664]
[1625251336150,1.40963344,2095.8,2095.7,52.0279]
[1625251336251,2.82463035,2095.8,2095.7,53.0279]
[1625251336354,1.41499691,2095.8,2095.7,53.0279]
[1625251338063,1.41499691,2095.8,2095.7,3.5615]
[1625251338517,1.41499691,2095.8,2095.7,59.5998]
[1625251338871,2.20527,2095.9,2095.7,59.5998]
[1625251343882,2.20527,2095.9,2095.7,3.5615]
[1625251344032,2.20527,2095.9,2095.7,1.0]
[1625251344884,2.20527,2095.9,2095.6,4.41054]
[1625251345133,4.76387,2095.9,2095.6,4.41054]
[1625251345434,6.17075057,2095.9,2095.6,4.41054]
[1625251345584,1.41501334,2095.8,2095.2,1.0]
[1625251346035,2.20527,2095.6,2095.3,2.20527]
[1625251347040,2.20527,2095.6,2095.2,1.0]
[1625251347390,2.20527,2095.6,2095.4,43.1474]
[1625251347788,2.20527,2095.6,2095.1,2.20527]
[1625251348088,4.41054,2095.6,2095.1,2.20527]
[1625251348540,4.41054,2095.6,2095.1,3.20527]
[1625251349444,4.41054,2095.6,2095.5,50.2192]
[1625251349547,4.41054,2095.6,2095.1,3.20527]
[1625251350097,2.20527,2095.2,2095.1,5.41054]
[1625251350200,2.20527,2095.2,2095.1,55.63444]
[1625251351374,2.20527,2095.6,2095.1,55.63444]
[1625251351471,2.20527,2095.6,2095.1,58.54994]
[1625251351981,2.20527,2095.6,2095.5,57.9438]
[1625251352081,4.41054,2095.6,2095.5,2.20527]
[1625251352730,4.41054,2095.6,2095.5,3.20527]
[1625251353932,4.41054,2095.6,2095.5,2.20527]
[1625251354484,4.41054,2095.6,2095.2,1.0]
[1625251355684,4.41054,2095.6,2095.4,47.397]
[1625251355832,4.41054,2095.6,2095.2,1.0]
[1625251358093,2.20527,2095.3,2095.2,1.0]
[1625251358695,2.20527,2095.3,2095.2,48.8738]
[1625251370846,1.40489352,2096.5,2095.2,48.8738]
[1625251371201,1.41472783,2096.4,2095.2,48.8738]
[1625251372252,2.20527,2096.1,2095.9,5.39867]
[1625251372352,2.20527,2096.1,2096.0,1.0]
[1625251372601,2.20527,2096.1,2095.9,5.39867]
[1625251373711,2.20527,2096.1,2096.0,1.0]
[1625251373813,51.21007,2096.1,2096.0,1.0]
[1625251373913,2.20527,2096.1,2095.9,5.39867]
[1625251375568,56.61677,2096.1,2095.9,5.39867]
[1625251375669,2.20527,2096.1,2095.9,5.39867]
[1625251376118,48.7875,2096.0,2095.9,5.39867]
[1625251376221,2.20527,2096.1,2095.9,5.39867]
[1625251377322,2.20527,2096.1,2095.9,6.39867]
[1625251377827,2.20527,2096.1,2095.9,66.42787]
[1625251377927,2.20527,2096.1,2095.9,6.39867]
[1625251379090,2.20527,2096.1,2095.9,60.77477]
[1625251379190,2.20527,2096.1,2095.9,6.39867]
[1625251379541,2.20527,2096.1,2095.9,5.39867]
[1625251379640,5.52027,2096.1,2095.6,1.0]
[1625251379741,5.52027,2096.1,2094.3,4.759]
[1625251379952,5.52027,2096.1,2094.6,1.38548992]
[1625251380044,5.52027,2096.1,2094.4,1.3873742]
[1625251380143,55.0052,2095.1,2094.5,42.3005]
[1625251380241,5.52027,2096.1,2094.4,1.3873742]
[1625251380442,2.20527,2095.2,2095.1,2.20527]
[1625251380544,5.12507,2095.2,2095.1,2.20527]
[1625251381444,5.12507,2095.2,2095.1,44.53587]
[1625251381646,5.12507,2095.2,2095.1,45.53587]
[1625251381746,2.9198,2095.2,2095.1,45.53587]
[1625251381848,3.315,2096.1,2095.1,45.53587]
[1625251382450,2.20527,2095.6,2095.4,2.20527]
[1625251383651,2.20527,2095.6,2095.1,3.20527]
[1625251383751,4.74157,2095.6,2095.1,2.20527]
[1625251384052,4.74157,2095.6,2095.1,47.40417]
[1625251384152,4.74157,2095.6,2095.1,2.20527]
[1625251384701,4.74157,2095.6,2095.1,47.28187]
[1625251384913,4.74157,2095.6,2095.2,1.0]
[1625251385567,49.0799,2095.4,2095.2,1.0]
[1625251385667,4.74157,2095.6,2095.2,1.0]
[1625251386468,4.74157,2095.6,2095.4,2.20527]
[1625251387270,2.20527,2095.6,2095.4,2.20527]
[1625251389886,2.20527,2095.6,2095.4,58.74937]
[1625251390286,2.20527,2095.6,2095.5,1.0]
[1625251390788,2.20527,2095.6,2095.5,41.2618]
[1625251390890,2.20527,2095.6,2095.5,1.0]
[1625251392692,2.20527,2095.6,2095.5,46.3352]
[1625251392793,2.20527,2095.6,2095.5,1.0]
[1625251393246,2.20527,2095.6,2095.5,46.3352]
[1625251393345,2.20527,2095.6,2095.5,1.0]
[1625251393848,2.20527,2095.6,2095.5,46.3352]
[1625251393947,2.20527,2095.6,2095.5,1.0]
[1625251394800,2.20527,2095.6,2095.4,2.20527]
[1625251394899,5.83347,2095.6,2095.4,2.20527]
[1625251395301,46.1411,2095.5,2095.4,2.20527]
[1625251395404,5.83347,2095.6,2095.1,2.20527]
[1625251395953,5.83347,2095.6,2095.2,1.0]
[1625251396605,2.20527,2095.3,2095.2,1.0]
[1625251397206,2.20527,2095.3,2095.2,46.7178]
[1625251397306,2.20527,2095.3,2095.2,1.0]
[1625251398564,2.20527,2095.3,2095.2,55.5456]
[1625251399317,2.20527,2095.3,2095.2,1.0]
[1625251401828,46.32067,2095.3,2095.2,1.0]
[1625251401927,2.20527,2095.3,2095.2,1.0]
[1625251402678,2.20527,2095.6,2095.2,1.0]
[1625251403230,1.41496689,2095.5,2095.2,1.0]
[1625251404833,46.7291,2095.4,2095.2,1.0]
[1625251404934,1.41496689,2095.5,2095.2,1.0]
[1625251405234,2.20527,2095.6,2095.2,1.0]
[1625251405493,1.41496051,2095.5,2095.2,1.0]
[1625251408597,1.41496051,2095.5,2095.4,2.20527]
[1625251410653,3.62023051,2095.5,2095.4,2.20527]
[1625251411757,3.62023051,2095.5,2095.2,1.0]
[1625251412207,1.41501719,2095.4,2095.2,1.0]
[1625251412557,1.41501719,2095.4,2095.1,2.20527]
[1625251413458,2.20527,2095.5,2095.1,2.20527]
[1625251413864,1.41503014,2095.4,2095.1,2.20527]
[1625251414612,2.20527,2095.2,2095.1,2.20527]
[1625251416271,2.20527,2095.5,2095.1,2.20527]
[1625251416823,1.4150141,2095.4,2095.1,2.20527]
[1625251417025,1.4150141,2095.4,2095.1,3.20527]
[1625251418131,1.4150141,2095.4,2095.2,55.4813]
[1625251418231,1.4150141,2095.4,2095.2,56.4813]
[1625251418683,1.4150141,2095.4,2095.2,58.68657]
[1625251419337,1.4150141,2095.4,2095.3,44.6646]
[1625251419442,1.4150141,2095.4,2095.3,45.6646]
[1625251419793,2.20527,2095.5,2095.3,45.6646]
[1625251420687,2.20527,2095.5,2095.4,43.20877]
[1625251420787,2.20527,2095.5,2095.4,44.20877]
[1625251420938,3.62013667,2095.5,2095.4,44.20877]
[1625251421392,3.62013667,2095.5,2095.4,3.20527]
[1625251421991,3.62013667,2095.5,2095.4,49.97587]
[1625251422089,3.62013667,2095.5,2095.4,3.20527]
[1625251422790,3.62013667,2095.5,2095.4,54.45337]
[1625251424005,3.62013667,2095.5,2095.4,3.20527]
[1625251424612,3.62013667,2095.5,2095.4,51.58887]